fUSD/lending_fUSD_20240814
["ID","MTS","AMOUNT","RATE_DAILY","PERIOD"]
[334952217,1723671039253,-303.85149521,0.00013086,2]
[334952219,1723671039265,-264.49036255,0.00013086,2]
[334952221,1723671039275,-160.53546923,0.00013086,2]
[334952223,1723671039284,-600.74422133,0.00013086,2]
[334952224,1723671039293,-270.62814649,0.00013086,2]
[334952225,1723671039303,-203.41395605,0.00013086,2]
[334952226,1723671039314,-892.72350459,0.00013086,2]
[334952227,1723671039324,-155.0,0.00013086,2]
[334952228,1723671039333,-157.63175246,0.00013086,2]
[334952229,1723671039343,-649.86351287,0.00013086,2]
[334952230,1723671039352,-155.0,0.00013086,2]
[334952231,1723671039362,-215.66,0.00013151,2]
[334952232,1723671039371,-587.0,0.00013279,2]
[334952233,1723671039381,-155.0,0.00013292,2]
[334952234,1723671039391,-298.91848984,0.00013292,2]
[334952235,1723671039400,-257.88535117,0.00013292,2]
[334952236,1723671039410,-155.0,0.00013292,2]
[334952237,1723671039420,-236.34424982,0.00013292,2]
[334952238,1723671039428,-357.45302385,0.00013292,2]
[334952239,1723671039438,-155.59379774,0.00013292,2]
[334952240,1723671039448,-367.87511774,0.00013292,2]
[334952241,1723671039458,-181.76294196,0.00013292,2]
[334952242,1723671039468,-164.40260801,0.00013292,2]
[334952243,1723671039477,-174.22408824,0.00013292,2]
[334952244,1723671039487,-160.53802962,0.00013292,2]
[334952245,1723671039496,-173.80369747,0.00013292,2]
[334952246,1723671039506,-155.15699907,0.00013292,2]
[334952247,1723671039515,-302.29715985,0.00013292,2]
[334952248,1723671039525,-205.64187872,0.00013292,2]
[334952249,1723671039534,-309.15189635,0.00013292,2]
[334952250,1723671039543,-242.65488527,0.00013292,2]
[334952251,1723671039552,-155.0,0.00013292,2]
[334952252,1723671039562,-197.05803079,0.00013292,2]
[334952253,1723671039572,-160.52860602,0.00013292,2]
[334952254,1723671039581,-203.15740941,0.00013292,2]
[334952255,1723671039591,-255.72134002,0.00013292,2]
[334952256,1723671039600,-301.48545008,0.00013292,2]
[334952257,1723671039610,-432.47832469,0.00013292,2]
[334952258,1723671039620,-155.0,0.00013292,2]
[334952259,1723671039629,-160.69414694,0.00013292,2]
[334952260,1723671039639,-197.1386879,0.00013292,2]
[334952261,1723671039648,-169.95664155,0.00013292,2]
[334952262,1723671039657,-251.2,0.00013293,2]
[334952263,1723671039667,-155.0,0.00013391,2]
[334952264,1723671039677,-485.18668102,0.00013391,2]
[334952265,1723671039686,-155.0,0.00013391,2]
[334952266,1723671039696,-528.91996067,0.00013391,2]
[334952267,1723671039706,-303.90469939,0.00013391,2]
[334952268,1723671039716,-155.0,0.0001368,2]
[334952269,1723671039725,-155.0,0.00013688,2]
[334952270,1723671039735,-155.0,0.00013688,2]
[334952271,1723671039745,-219.29769889,0.00013688,2]
[334952272,1723671039754,-347.69615481,0.00013698,2]
[334952273,1723671039763,-500.0,0.00013698,2]
[334952274,1723671039773,-500.0,0.00013698,2]
[334952275,1723671039783,-500.0,0.00013698,2]
[334952276,1723671039792,-336.28433846,0.00013698,2]
[334952277,1723671039801,-500.0,0.00013698,2]
[334952278,1723671039811,-828.6,0.00013698,2]
[334952279,1723671039821,-500.0,0.00013698,2]
[334952280,1723671039835,-500.0,0.00013698,2]
[334952281,1723671039844,-500.0,0.00013698,2]
[334952282,1723671039853,-578.01,0.00013698,2]
[334952283,1723671039862,-227.67393034,0.00013698,2]
[334952284,1723671039873,-311.07930141,0.00013698,2]
[334952285,1723671039882,-500.0,0.00013698,2]
[334952286,1723671039890,-500.0,0.00013698,2]
[334952287,1723671039899,-500.0,0.00013698,2]
[334952288,1723671039911,-500.0,0.00013698,2]
[334952289,1723671039921,-500.0,0.00013698,2]
[334952290,1723671039931,-500.0,0.00013698,2]
[334952291,1723671039941,-500.0,0.00013698,2]
[334952292,1723671039953,-500.0,0.00013698,2]
[334952293,1723671039963,-500.0,0.00013698,2]
[334952294,1723671039973,-500.0,0.00013698,2]
[334952295,1723671039982,-500.0,0.00013698,2]
[334952296,1723671039992,-500.0,0.00013698,2]
[334952297,1723671040002,-500.0,0.00013698,2]
[334952298,1723671040011,-500.0,0.00013698,2]
[334952299,1723671040020,-500.0,0.00013698,2]
[334952300,1723671040030,-500.0,0.00013698,2]
[334952301,1723671040039,-500.0,0.00013698,2]
[334952302,1723671040048,-543.0,0.00013698,2]
[334952303,1723671040058,-500.0,0.00013698,2]
[334952305,1723671040067,-500.0,0.00013698,2]
[334952306,1723671040076,-516.82,0.00013698,2]
[334952307,1723671040086,-500.0,0.00013698,2]
[334952308,1723671040095,-500.0,0.00013698,2]
[334952309,1723671040104,-1439.5,0.00013698,2]
[334952310,1723671040114,-500.0,0.00013698,2]
[334952311,1723671040245,-500.0,0.00013698,2]
[334952312,1723671040255,-500.0,0.00013698,2]
[334952313,1723671040265,-500.0,0.00013698,2]
[334952314,1723671040275,-500.0,0.00013698,2]
[334952315,1723671040284,-500.0,0.00013698,2]
[334952316,1723671040293,-500.0,0.00013698,2]
[334952317,1723671040303,-500.0,0.00013698,2]
[334952318,1723671040312,-1349.32,0.00013698,2]
[334952319,1723671040321,-500.0,0.00013698,2]
[334952320,1723671040330,-500.0,0.00013698,2]
[334952321,1723671040340,-500.0,0.00013698,2]
[334952322,1723671040349,-500.0,0.00013698,2]
[334952323,1723671040359,-500.0,0.00013698,2]
[334952324,1723671040368,-500.0,0.00013698,2]
[334952325,1723671040378,-879.23,0.00013698,2]
[334952326,1723671040387,-500.0,0.00013698,2]
[334952327,1723671040396,-500.0,0.00013698,2]
[334952328,1723671040406,-500.0,0.00013698,2]
[334952329,1723671040415,-500.0,0.00013698,2]
[334952330,1723671040425,-500.0,0.00013698,2]
[334952331,1723671040434,-500.0,0.00013698,2]
[334952332,1723671040445,-500.0,0.00013698,2]
[334952333,1723671040454,-500.0,0.00013698,2]
[334952334,1723671040464,-500.0,0.00013698,2]
[334952335,1723671040473,-500.0,0.00013698,2]
[334952336,1723671040481,-500.0,0.00013698,2]
[334952337,1723671040490,-1445.27,0.00013698,2]
[334952338,1723671040500,-500.0,0.00013698,2]
[334952339,1723671040510,-500.0,0.00013698,2]
[334952340,1723671040519,-515.35,0.00013698,2]
[334952341,1723671040528,-500.0,0.00013698,2]
[334952342,1723671040538,-500.0,0.00013698,2]
[334952343,1723671040547,-500.0,0.00013698,2]
[334952344,1723671040556,-500.0,0.00013698,2]
[334952345,1723671040565,-500.0,0.00013698,2]
[334952346,1723671040575,-1747.42,0.00013699,2]
[334952347,1723671040584,-200.0,0.00013699,2]
[334952348,1723671040593,-2751.0,0.00013699,2]
[334952349,1723671040602,-171.18,0.00013699,2]
[334952350,1723671040612,-500.0,0.00013699,2]
[334952351,1723671040621,-2208.61,0.000137,2]
[334952352,1723671040631,-2208.61,0.000137,2]
[334952353,1723671040640,-2208.61,0.000137,2]
[334952354,1723671040649,-2208.61,0.000137,2]
[334952355,1723671040659,-2208.61,0.000137,2]
[334952356,1723671040669,-305.71026992,0.00013773,2]
[334952357,1723671040678,-200.0,0.00013773,2]
[334952358,1723671040687,-200.0,0.00013773,2]
[334952359,1723671040698,-200.0,0.00013773,2]
[334952361,1723671040707,-151.01,0.0001379,2]
[334952362,1723671040717,-248997.765144,0.000138,3]
[334952364,1723671040727,-179.4461029,0.0001385,2]
[334952366,1723671040736,-3937.46359227,0.00013851,2]
[334952368,1723671040746,-211.0133722,0.00013851,2]
[334952370,1723671040756,-155.0,0.00013851,2]
[334952372,1723671040766,-194.09478608,0.00013861,2]
[334952374,1723671040776,-5403.79429818,0.00013861,2]
[334952376,1723671040786,-4958.6828,0.00013872,2]
[334952378,1723671040795,-4804.0,0.00013889,2]
[334952380,1723671040806,-2800.0,0.000139,5]
[334952382,1723671040817,-256975.722649,0.000139,3]
[334952384,1723671040829,-300.943639,0.000139,2]
[334952386,1723671040839,-300.943639,0.000139,2]
[334952388,1723671040849,-151.01,0.00013961,2]
[334952390,1723671040859,-500.0,0.0001397,2]
[334952392,1723671040869,-500.0,0.0001397,2]
[334952394,1723671040879,-500.0,0.0001397,2]
[334952396,1723671040888,-2033.88,0.0001397,2]
[334952398,1723671040898,-500.0,0.0001397,2]
[334952400,1723671040908,-1074.68,0.0001397,2]
[334952402,1723671040919,-500.0,0.0001397,2]
[334952404,1723671040928,-500.0,0.0001397,2]
[334952406,1723671040937,-500.0,0.0001397,2]
[334952408,1723671040949,-1128.61,0.0001397,2]
[334952410,1723671040958,-500.0,0.0001397,2]
[334952412,1723671040968,-500.0,0.0001397,2]
[334952414,1723671040978,-500.0,0.0001397,2]
[334952416,1723671040987,-500.0,0.0001397,2]
[334952418,1723671040997,-500.0,0.0001397,2]
[334952420,1723671041007,-507.16,0.0001397,2]
[334952422,1723671041017,-500.0,0.0001397,2]
[334952424,1723671041027,-500.0,0.0001397,2]
[334952426,1723671041037,-500.0,0.0001397,2]
[334952428,1723671041046,-500.0,0.0001397,2]
[334952430,1723671041056,-500.0,0.0001397,2]
[334952432,1723671041065,-500.0,0.0001397,2]
[334952433,1723671041075,-500.0,0.00013971,2]
[334952436,1723671041084,-235.38347474,0.00013971,2]
[334952438,1723671041095,-500.0,0.00013971,2]
[334952440,1723671041104,-500.0,0.00013971,2]
[334952442,1723671041114,-500.0,0.00013971,2]
[334952444,1723671041123,-500.0,0.00013971,2]
[334952446,1723671041133,-500.0,0.00013971,2]
[334952448,1723671041142,-500.0,0.00013971,2]
[334952449,1723671041150,-500.0,0.00013971,2]
[334952451,1723671041160,-500.0,0.00013971,2]
[334952453,1723671041169,-696.69,0.00013971,2]
[334952455,1723671041178,-320.16391207,0.00013971,2]
[334952457,1723671041187,-979.79,0.00013971,2]
[334952459,1723671041197,-500.0,0.00013971,2]
[334952461,1723671041206,-500.0,0.00013971,2]
[334952463,1723671041215,-500.0,0.00013971,2]
[334952465,1723671041224,-500.0,0.00013971,2]
[334952467,1723671041234,-500.0,0.00013971,2]
[334952469,1723671041245,-500.0,0.00013971,2]
[334952471,1723671041254,-500.0,0.00013971,2]
[334952473,1723671041263,-500.0,0.00013971,2]
[334952475,1723671041273,-500.0,0.00013971,2]
[334952477,1723671041282,-500.0,0.00013971,2]
[334952479,1723671041291,-500.0,0.00013971,2]
[334952481,1723671041300,-639.81,0.00013971,2]
[334952483,1723671041310,-500.0,0.00013971,2]
[334952485,1723671041319,-500.0,0.00013971,2]
[334952487,1723671041328,-500.0,0.00013971,2]
[334952489,1723671041338,-500.0,0.00013971,2]
[334952490,1723671041347,-500.0,0.00013971,2]
[334952492,1723671041356,-413.90539867,0.00013971,2]
[334952494,1723671041366,-500.0,0.00013971,2]
[334952496,1723671041376,-500.0,0.00013971,2]
[334952498,1723671041385,-500.0,0.00013971,2]
[334952500,1723671041394,-500.0,0.00013971,2]
[334952503,1723671041404,-673.87,0.00013971,2]
[334952505,1723671041413,-500.0,0.00013971,2]
[334952507,1723671041423,-500.0,0.00013971,2]
[334952508,1723671041432,-299.87198233,0.00013971,2]
[334952510,1723671041441,-500.0,0.00013971,2]
[334952512,1723671041454,-500.0,0.00013971,2]
[334952514,1723671041464,-500.0,0.00013971,2]
[334952516,1723671041473,-716.22,0.00013971,2]
[334952518,1723671041484,-500.0,0.00013971,2]
[334952520,1723671041494,-1083.34,0.00013971,2]
[334952522,1723671041503,-500.0,0.00013971,2]
[334952524,1723671041512,-500.0,0.00013971,2]
[334952526,1723671041521,-500.0,0.00013971,2]
[334952528,1723671041531,-500.0,0.00013971,2]
[334952530,1723671041540,-500.0,0.00013971,2]
[334952532,1723671041549,-867.92,0.00013971,2]
[334952534,1723671041558,-500.0,0.00013971,2]
[334952536,1723671041567,-500.0,0.00013971,2]
[334952538,1723671041576,-598.09,0.00013971,2]
[334952540,1723671041586,-500.0,0.00013971,2]
[334952542,1723671041595,-500.0,0.00013971,2]
[334952544,1723671041604,-500.0,0.00013971,2]
[334952546,1723671041613,-500.0,0.00013971,2]
[334952548,1723671041623,-500.0,0.00013971,2]
[334952551,1723671041633,-500.0,0.00013971,2]
[334952552,1723671041643,-500.0,0.00013971,2]
[334952554,1723671041653,-500.0,0.00013971,2]
[334952556,1723671041662,-500.0,0.00013971,2]
[334952558,1723671041672,-500.0,0.00013971,2]
[334952560,1723671041683,-500.0,0.00013971,2]
[334952563,1723671041694,-500.0,0.00013971,2]
[334952564,1723671041704,-500.0,0.00013971,2]
[334952566,1723671041713,-500.0,0.00013971,2]
[334952568,1723671041722,-500.0,0.00013971,2]
[334952570,1723671041732,-837.07,0.00013971,2]
[334952572,1723671041742,-526.04,0.00013971,2]
[334952574,1723671041751,-500.0,0.00013971,2]
[334952577,1723671041762,-500.0,0.00013971,2]
[334952579,1723671041771,-500.0,0.00013971,2]
[334952581,1723671041781,-500.0,0.00013971,2]
[334952583,1723671041793,-500.0,0.00013971,2]
[334952585,1723671041803,-257.03900718,0.00013971,2]
[334952587,1723671041814,-500.0,0.00013971,2]
[334952589,1723671041823,-500.0,0.00013971,2]
[334952591,1723671041837,-500.0,0.00013971,2]
[334952593,1723671041847,-500.0,0.00013971,2]
[334952595,1723671041857,-500.0,0.00013971,2]
[334952598,1723671041866,-151.0,0.00013972,2]
[334952600,1723671041878,-500.0,0.00013972,2]
[334952602,1723671041889,-500.0,0.00013972,2]
[334952604,1723671041901,-500.0,0.00013972,2]
[334952606,1723671041914,-500.0,0.00013972,2]
[334952608,1723671041924,-828.6,0.00013972,2]
[334952610,1723671041934,-500.0,0.00013972,2]
[334952612,1723671041944,-500.0,0.00013972,2]
[334952614,1723671041954,-163.67023724,0.00013972,2]
[334952616,1723671041963,-578.01,0.00013972,2]
[334952618,1723671041973,-500.0,0.00013972,2]
[334952620,1723671041982,-500.0,0.00013972,2]
[334952622,1723671041992,-500.0,0.00013972,2]
[334952624,1723671042001,-500.0,0.00013972,2]
[334952626,1723671042010,-500.0,0.00013972,2]
[334952628,1723671042019,-500.0,0.00013972,2]
[334952630,1723671042029,-500.0,0.00013972,2]
[334952632,1723671042039,-500.0,0.00013972,2]
[334952634,1723671042048,-500.0,0.00013972,2]
[334952636,1723671042059,-500.0,0.00013972,2]
[334952638,1723671042071,-500.0,0.00013972,2]
[334952640,1723671042081,-500.0,0.00013972,2]
[334952642,1723671042092,-500.0,0.00013972,2]
[334952644,1723671042102,-500.0,0.00013972,2]
[334952645,1723671042111,-500.0,0.00013972,2]
[334952647,1723671042120,-500.0,0.00013972,2]
[334952649,1723671042130,-500.0,0.00013972,2]
[334952651,1723671042139,-543.0,0.00013972,2]
[334952653,1723671042149,-500.0,0.00013972,2]
[334952655,1723671042158,-500.0,0.00013972,2]
[334952657,1723671042167,-516.82,0.00013972,2]
[334952659,1723671042176,-500.0,0.00013972,2]
[334952661,1723671042186,-500.0,0.00013972,2]
[334952663,1723671042195,-1439.5,0.00013972,2]
[334952665,1723671042204,-500.0,0.00013972,2]
[334952667,1723671042214,-500.0,0.00013972,2]
[334952669,1723671042223,-500.0,0.00013972,2]
[334952671,1723671042233,-500.0,0.00013972,2]
[334952673,1723671042243,-500.0,0.00013972,2]
[334952675,1723671042253,-500.0,0.00013972,2]
[334952677,1723671042263,-500.0,0.00013972,2]
[334952679,1723671042272,-500.0,0.00013972,2]
[334952681,1723671042281,-1349.32,0.00013972,2]
[334952683,1723671042290,-500.0,0.00013972,2]
[334952685,1723671042299,-500.0,0.00013972,2]
[334952687,1723671042311,-500.0,0.00013972,2]
[334952689,1723671042322,-500.0,0.00013972,2]
[334952691,1723671042335,-500.0,0.00013972,2]
[334952693,1723671042346,-500.0,0.00013972,2]
[334952695,1723671042356,-879.23,0.00013972,2]
[334952698,1723671042366,-500.0,0.00013972,2]
[334952700,1723671042377,-500.0,0.00013972,2]
[334952713,1723671042495,-500.0,0.00013972,2]
[334952716,1723671042506,-500.0,0.00013972,2]
[334952718,1723671042517,-500.0,0.00013972,2]
[334952720,1723671042526,-500.0,0.00013972,2]
[334952722,1723671042536,-500.0,0.00013972,2]
[334952724,1723671042546,-500.0,0.00013972,2]
[334952726,1723671042556,-500.0,0.00013972,2]
[334952728,1723671042566,-500.0,0.00013972,2]
[334952730,1723671042576,-500.0,0.00013972,2]
[334952732,1723671042586,-1445.27,0.00013972,2]
[334952734,1723671042597,-500.0,0.00013972,2]
[334952736,1723671042607,-500.0,0.00013972,2]
[334952738,1723671042617,-500.0,0.00013972,2]
[334952740,1723671042629,-500.0,0.00013972,2]
[334952742,1723671042639,-500.0,0.00013972,2]
[334952744,1723671042650,-377.20808797,0.00013972,2]
[334952746,1723671042660,-500.0,0.00013972,2]
[334952748,1723671042671,-152.16,0.00013973,2]
[334952750,1723671042682,-266.9708833,0.00014,2]
[334952752,1723671042691,-5438.35417513,0.00014,4]
[334952754,1723671042701,-312.17786625,0.00014011,2]
[334952756,1723671042710,-7900.8067279,0.0001402,2]
[334952758,1723671042720,-500.0,0.00014099,2]
[334952760,1723671042731,-21973.286223,0.000141,2]
[334952762,1723671042743,-3000.0,0.000141,2]
[334952765,1723671042753,-347.853,0.00014146,2]
[334952767,1723671042763,-168.79478605,0.00014235,2]
[334952769,1723671042774,-500.0,0.00014244,2]
[334952771,1723671042786,-500.0,0.00014244,2]
[334952773,1723671042796,-500.0,0.00014244,2]
[334952775,1723671042807,-2033.88,0.00014244,2]
[334952777,1723671042815,-500.0,0.00014244,2]
[334952779,1723671042825,-1074.68,0.00014244,2]
[334952781,1723671042837,-500.0,0.00014244,2]
[334952783,1723671042848,-500.0,0.00014244,2]
[334952785,1723671042858,-500.0,0.00014244,2]
[334952787,1723671042867,-1128.61,0.00014244,2]
[334952790,1723671042877,-500.0,0.00014244,2]
[334952793,1723671042885,-500.0,0.00014244,2]
[334952795,1723671042894,-500.0,0.00014244,2]
[334952797,1723671042903,-500.0,0.00014244,2]
[334952799,1723671042913,-500.0,0.00014244,2]
[334952801,1723671042922,-507.16,0.00014244,2]
[334952803,1723671042933,-500.0,0.00014244,2]
[334952805,1723671042944,-500.0,0.00014244,2]
[334952807,1723671042954,-500.0,0.00014244,2]
[334952809,1723671042963,-500.0,0.00014244,2]
[334952811,1723671042972,-500.0,0.00014244,2]
[334952813,1723671042983,-500.0,0.00014244,2]
[334952815,1723671042992,-1518.02409611,0.00014245,2]
[334952817,1723671043002,-2998.37985187,0.00014245,2]
[334952819,1723671043012,-150.01,0.00014245,2]
[334952820,1723671043022,-500.0,0.00014245,2]
[334952822,1723671043032,-500.0,0.00014245,2]
[334952824,1723671043042,-500.0,0.00014245,2]
[334952825,1723671043052,-500.0,0.00014245,2]
[334952826,1723671043061,-571.13685324,0.00014245,2]
[334952827,1723671043072,-500.0,0.00014245,2]
[334952828,1723671043083,-480.60499,0.00014245,2]
[334952829,1723671043095,-500.0,0.00014245,2]
[334952830,1723671043105,-500.0,0.00014245,2]
[334952831,1723671043117,-500.0,0.00014245,2]
[334952832,1723671043127,-500.0,0.00014245,2]
[334952833,1723671043136,-500.0,0.00014245,2]
[334952834,1723671043147,-500.0,0.00014245,2]
[334952835,1723671043157,-500.0,0.00014245,2]
[334952836,1723671043167,-500.0,0.00014245,2]
[334952837,1723671043177,-500.0,0.00014245,2]
[334952838,1723671043186,-181.99764249,0.00014245,2]
[334952840,1723671043197,-500.0,0.00014245,2]
[334952842,1723671043206,-500.0,0.00014245,2]
[334952845,1723671043215,-500.0,0.00014245,2]
[334952848,1723671043225,-500.0,0.00014245,2]
[334952850,1723671043235,-500.0,0.00014245,2]
[334952853,1723671043244,-500.0,0.00014245,2]
[334952856,1723671043254,-500.0,0.00014245,2]
[334952859,1723671043263,-500.0,0.00014245,2]
[334952863,1723671043272,-500.0,0.00014245,2]
[334952867,1723671043282,-500.0,0.00014245,2]
[334952870,1723671043291,-500.0,0.00014245,2]
[334952873,1723671043300,-500.0,0.00014245,2]
[334952876,1723671043309,-246.75970538,0.00014245,2]
[334952879,1723671043318,-500.0,0.00014245,2]
[334952882,1723671043328,-500.0,0.00014245,2]
[334952885,1723671043338,-500.0,0.00014245,2]
[334952888,1723671043349,-500.0,0.00014245,2]
[334952891,1723671043359,-500.0,0.00014245,2]
[334952894,1723671043368,-696.69,0.00014245,2]
[334952898,1723671043378,-500.0,0.00014245,2]
[334952901,1723671043387,-500.0,0.00014245,2]
[334952903,1723671043396,-500.0,0.00014245,2]
[334952906,1723671043405,-979.79,0.00014245,2]
[334952909,1723671043415,-500.0,0.00014245,2]
[334952912,1723671043425,-500.0,0.00014245,2]
[334952916,1723671043434,-500.0,0.00014245,2]
[334952920,1723671043444,-500.0,0.00014245,2]
[334952923,1723671043454,-500.0,0.00014245,2]
[334952927,1723671043464,-500.0,0.00014245,2]
[334952930,1723671043473,-500.0,0.00014245,2]
[334952932,1723671043481,-500.0,0.00014245,2]
[334952935,1723671043490,-500.0,0.00014245,2]
[334952937,1723671043499,-1000.0,0.00014245,2]
[334952939,1723671043508,-500.0,0.00014245,2]
[334952942,1723671043518,-500.0,0.00014245,2]
[334952944,1723671043529,-500.0,0.00014245,2]
[334952946,1723671043539,-500.0,0.00014245,2]
[334952948,1723671043548,-500.0,0.00014245,2]
[334952950,1723671043559,-500.0,0.00014245,2]
[334952952,1723671043570,-500.0,0.00014245,2]
[334952954,1723671043580,-500.0,0.00014245,2]
[334952956,1723671043592,-500.0,0.00014245,2]
[334952958,1723671043603,-639.81,0.00014245,2]
[334952960,1723671043612,-500.0,0.00014245,2]
[334952963,1723671043624,-500.0,0.00014245,2]
[334952965,1723671043634,-500.0,0.00014245,2]
[334952967,1723671043646,-500.0,0.00014245,2]
[334952969,1723671043656,-500.0,0.00014245,2]
[334952971,1723671043667,-500.0,0.00014245,2]
[334952973,1723671043679,-500.0,0.00014245,2]
[334952976,1723671043690,-500.0,0.00014245,2]
[334952978,1723671043701,-151.0,0.00014245,2]
[334952980,1723671043711,-151.0,0.00014245,2]
[334952982,1723671043721,-463.702414,0.00014245,2]
[334952984,1723671043731,-500.0,0.00014245,2]
[334952986,1723671043741,-500.0,0.00014245,2]
[334952988,1723671043751,-463.702414,0.00014245,2]
[334952990,1723671043762,-151.0,0.00014245,2]
[334952992,1723671043772,-500.0,0.00014245,2]
[334952995,1723671043783,-151.0,0.00014245,2]
[334952997,1723671043794,-151.0,0.00014245,2]
[334952999,1723671043805,-381.31042963,0.00014245,2]
[334953001,1723671043815,-500.0,0.00014245,2]
[334953003,1723671043825,-673.87,0.00014245,2]
[334953005,1723671043838,-283.669863,0.00014245,2]
[334953007,1723671043847,-500.0,0.00014245,2]
[334953009,1723671043857,-283.669863,0.00014245,2]
[334953010,1723671043867,-1191.97,0.00014245,2]
[334953012,1723671043876,-500.0,0.00014245,2]
[334953014,1723671043886,-151.0,0.00014245,2]
[334953016,1723671043895,-500.0,0.00014245,2]
[334953018,1723671043906,-1276.494415,0.00014245,2]
[334953020,1723671043915,-1362.441765,0.00014245,2]
[334953022,1723671043926,-1276.494415,0.00014245,2]
[334953024,1723671043935,-1362.441765,0.00014245,2]
[334953026,1723671043945,-151.0,0.00014245,2]
[334953028,1723671043955,-151.167721,0.00014245,2]
[334953030,1723671043965,-500.0,0.00014245,2]
[334953032,1723671043975,-500.0,0.00014245,2]
[334953034,1723671043985,-151.0,0.00014245,2]
[334953036,1723671043995,-500.0,0.00014245,2]
[334953038,1723671044004,-500.0,0.00014245,2]
[334953040,1723671044015,-716.22,0.00014245,2]
[334953042,1723671044026,-500.0,0.00014245,2]
[334953045,1723671044037,-500.0,0.00014245,2]
[334953047,1723671044047,-500.0,0.00014245,2]
[334953049,1723671044057,-1083.34,0.00014245,2]
[334953051,1723671044066,-268.600172,0.00014245,2]
[334953053,1723671044076,-268.600172,0.00014245,2]
[334953055,1723671044086,-186.93130555,0.00014245,2]
[334953057,1723671044095,-151.0,0.00014245,2]
[334953059,1723671044105,-500.0,0.00014245,2]
[334953061,1723671044113,-151.0,0.00014245,2]
[334953062,1723671044122,-500.0,0.00014245,2]
[334953064,1723671044131,-500.0,0.00014245,2]
[334953066,1723671044140,-500.0,0.00014245,2]
[334953068,1723671044151,-1034.841714,0.00014245,2]
[334953070,1723671044161,-500.923607,0.00014245,2]
[334953071,1723671044170,-1034.841714,0.00014245,2]
[334953072,1723671044179,-500.923607,0.00014245,2]
[334953073,1723671044189,-500.0,0.00014245,2]
[334953074,1723671044198,-500.0,0.00014245,2]
[334953075,1723671044209,-500.0,0.00014245,2]
[334953076,1723671044218,-500.0,0.00014245,2]
[334953077,1723671044228,-166.486331,0.00014245,2]
[334953078,1723671044237,-867.92,0.00014245,2]
[334953079,1723671044247,-151.0,0.00014245,2]
[334953080,1723671044256,-500.0,0.00014245,2]
[334953081,1723671044265,-500.0,0.00014245,2]
[334953082,1723671044275,-166.486331,0.00014245,2]
[334953083,1723671044285,-151.0,0.00014245,2]
[334953084,1723671044294,-598.09,0.00014245,2]
[334953085,1723671044303,-500.0,0.00014245,2]
[334953086,1723671044313,-500.0,0.00014245,2]
[334953087,1723671044322,-500.0,0.00014245,2]
[334953088,1723671044331,-192.855721,0.00014245,2]
[334953089,1723671044342,-500.0,0.00014245,2]
[334953090,1723671044351,-151.0,0.00014245,2]
[334953091,1723671044362,-192.855721,0.00014245,2]
[334953092,1723671044371,-500.0,0.00014245,2]
[334953093,1723671044380,-500.0,0.00014245,2]